Cogmind - Beta 12 @@@ ROGUE MODE // 2023.09.21 @ 23:37:13 Player: Horse Result: Destroyed by Y-54 Guardian with Gatling Laser Performance ------------- Evolutions (4) 2000 Regions Visited (12) 2400 Robots Destroyed (197) 985 Value Destroyed (10184) 10184 Prototype IDs (14) 280 Alien Tech Used (0) 0 Bonus (7390) 7390 TOTAL SCORE: 23239 Bonus ------- High Alert Combat Kills 1619 Follower Combat Kills 2073 Entered Garrisons 800 Used RIF Installer 3000 Friendly Fire -102 Cogmind --------- Core Integrity 0/850 Matter 300/300 Energy 100/100 System Corruption 14% Temperature Cool (18) Movement Core (250) Ox4 Location -6/Extension Parts ------- > --- POWER (2) -------- (None) > --- PROPULSION (3) --- (None) > --- UTILITY (7) ------ Medium Storage Unit Improved Light Armor Plating Relay Coupler [Grunt] (1) Relay Coupler [Sentry] (18) > --- WEAPON (3) ------- (None) > --- INVENTORY (10) --- Carbon-fiber Leg Long-range Terrain Scanner Relay Coupler [NC] (28) Relay Coupler [Swarmer] (38) Relay Coupler [Proto] (9) Relay Coupler [Proto] (9) Peak State ------------ > --- POWER ------------ Neutrino Core Particle Reactor > --- PROPULSION ------- Carbon-fiber Leg Myomer Leg Advanced VSS Leg > --- UTILITY ---------- Medium Storage Unit Advanced Transmission Jammer Improved Remote Shield Relay Coupler [NC] Relay Coupler [Grunt] Relay Coupler [Sentry] Relay Coupler [Behemoth] > --- WEAPON ----------- Quantum Rifle Matter Neutralizer Precision Grenade Launcher > --- INVENTORY -------- Light Treads Advanced Cooling System Long-range Terrain Scanner Improved Medium Armor Plating Relay Coupler [NC] Relay Coupler [Swarmer] Relay Coupler [Proto] Relay Coupler [Proto] Improved Datajack Remote Datajack [Rating: 84] Favorites ----------- Power Nuclear Core Engine Heavy Ion Engine Power Core Nuclear Core Reactor Particle Reactor Propulsion Armored Treads Treads Armored Treads Leg Aluminum Leg Wheel Wheel Utility Medium Storage Unit Device Improved Cooling System Storage Medium Storage Unit Processor Advanced Visual Processing Unit Hackware Relay Coupler [Grunt] Protection Improved Medium Armor Plating Weapon Gauss Rifle Energy Gun Heavy Laser Energy Cannon Matter Neutralizer Ballistic Gun Gauss Rifle Ballistic Cannon Advanced Assault Cannon Launcher Precision Grenade Launcher Special Weapon Remote Datajack Special Melee Weapon Improved Datajack Build | -11 -10 -9 -8 -8 -8 -7 -7 -7 -7 -6 -6 -6 ------- Run | Jun Mat Mat Mat Gar Mat Fac Gar Fac Gar Fac Gar Ext Slots Evolved 8 | . . 2 2 . . 2 . . . 2 . . Power 1 | . . . 1 . . . . . . . . . Propulsion 1 | . . . . . . 1 . . . . . . Utility 5 | . . 2 . . . 1 . . . 2 . . Weapon 1 | . . . 1 . . . . . . . . . Parts Attached 243 | 11 18 35 13 25 33 22 12 2 27 2 11 32 Power 22 | 1 2 3 1 2 5 . 1 . 2 . 2 3 Engine 10 | 1 1 3 . . 1 . . . 1 . 1 2 Core 10 | . 1 . 1 2 4 . . . 1 . . 1 Reactor 2 | . . . . . . . 1 . . . 1 . Propulsion 38 | 4 5 4 1 3 4 3 . . 3 . 2 9 Treads 21 | . . 2 1 3 4 3 . . 3 . 2 3 Leg 15 | 2 5 2 . . . . . . . . . 6 Wheel 2 | 2 . . . . . . . . . . . . Hover . | . . . . . . . . . . . . . Flight . | . . . . . . . . . . . . . Utility 80 | 3 7 15 4 7 8 4 5 1 8 2 5 11 Device 36 | 2 3 9 2 2 1 . 4 . 3 2 2 6 Storage 2 | 1 1 . . . . . . . . . . . Processor 3 | . 1 1 . . . 1 . . . . . . Hackware 18 | . 1 . . 4 3 1 . 1 3 . 3 2 Protection 21 | . 1 5 2 1 4 2 1 . 2 . . 3 Artifact . | . . . . . . . . . . . . . Weapon 103 | 3 4 13 7 13 16 15 6 1 14 . 2 9 Energy Gun 28 | 2 1 5 3 . 4 3 2 . 5 . . 3 Energy Cannon 16 | . 1 2 . . 2 4 3 . 2 . . 2 Ballistic Gun 13 | 1 . . 2 6 4 . . . . . . . Ballistic Cannon 3 | . 1 1 . . 1 . . . . . . . Launcher 20 | . 1 5 1 3 3 2 1 . 2 . 1 1 Special Weapon 12 | . . . . 3 2 2 . 1 2 . 1 1 Impact Weapon . | . . . . . . . . . . . . . Slashing Weapon . | . . . . . . . . . . . . . Piercing Weapon . | . . . . . . . . . . . . . Special Melee Weapon 11 | . . . 1 1 . 4 . . 3 . . 2 Unidentified Prototypes 4 | . . . 1 . 3 . . . . . . . Parts Lost 56 | . 4 2 . 6 5 . 3 . 7 . 3 26 Power 12 | . 2 1 . 1 1 . . . 2 . . 5 Propulsion 10 | . . . . 1 . . . . 3 . . 6 Utility 15 | . . . . 1 1 . 3 . 1 . 2 7 Weapon 19 | . 2 1 . 3 3 . . . 1 . 1 8 Highest Loss Streak 16 | . 1 1 . 3 2 . 3 . 5 . 3 16 To Critical Strikes 1 | . . . . . . . . . . . . 1 Average Slot Usage (%) 95 | . 97 98 90 93 96 99 96 92 90 100 98 93 Engine 4 | . 9 10 9 8 1 . . . 4 6 4 2 Core 6 | . 3 . 1 3 16 15 11 7 2 6 6 4 Reactor 1 | . . . . . . . 3 7 2 . 1 4 Treads 15 | . . 10 18 17 17 22 23 23 21 20 20 6 Leg 5 | . 28 11 . . . . . . . . . 13 Device 9 | . 9 11 15 3 . 7 9 19 9 20 22 9 Storage 8 | . 14 11 9 9 9 7 7 7 7 6 6 6 Processor 1 | . . 1 . . . 6 7 7 2 . . . Hackware 9 | . 3 7 . 6 18 2 . 3 13 13 8 22 Protection 8 | . 1 12 11 16 7 11 11 . 4 6 6 5 Energy Gun 6 | . 10 8 8 2 7 2 10 . 8 13 6 5 Energy Cannon 4 | . 2 4 4 . 1 9 4 8 7 6 6 4 Ballistic Gun 5 | . 9 . 7 21 11 . . . . . . . Ballistic Cannon 1 | . 3 5 . . . 7 4 . . . . . Launcher 1 | . . 2 3 1 3 . . . . . . 1 Special Weapon 1 | . . . . . 1 . . 5 2 . 5 2 Naked Turns . | . . . . . . . . . . . . . Heaviest Build 80 | 15 20 36 46 47 50 54 72 64 65 75 80 79 Greatest Support 60 | 26 20 40 40 40 40 60 60 60 60 60 60 60 Greatest Overweight (x) 4 | . . 1 1 1 1 . 1 1 2 1 1 4 Average Overweight (x) . | . . . . . . . . . . 1 1 . Largest Inventory Capacity 10 | 8 10 10 10 10 10 10 10 10 10 10 10 10 Average Capacity 9 | 7 9 10 10 10 10 10 10 10 10 10 10 10 Most Carried 10 | 6 10 10 10 10 10 10 10 10 10 8 10 10 Average Carried 9 | 2 7 9 9 9 9 8 9 10 8 7 9 9 Final Capacity 10 | 8 10 10 10 10 10 10 10 10 10 10 10 10 Final Carried 10 | 6 10 10 10 9 8 10 10 10 9 7 10 6 Class Distribution -------------------- 31% | Mutant 25% | Tank 15% | Botlord-Mutant 9% | Bothacker-Mutant 6% | Scavenger-Mutant 4% | Scavenger-Tank 3% | Bothacker-Tank Dominant Class ---------------- Mutant | -10/Materials Mutant | -9/Materials Mutant | -8/Materials Tank | -8/Garrison Tank | -8/Materials Tank | -7/Factory Tank | -7/Garrison Mutant | -7/Factory Scavenger-Tank | -7/Garrison Bothacker-Tank | -6/Factory Botlord-Mutant | -6/Garrison Botlord-Mutant | -6/Extension Resources | -11 -10 -9 -8 -8 -8 -7 -7 -7 -7 -6 -6 -6 ----------- Run | Jun Mat Mat Mat Gar Mat Fac Gar Fac Gar Fac Gar Ext Matter Collected 5683 | 301 419 650 422 863 937 634 219 . 360 . 293 585 Remotely 288 | . . . . 177 . . . . . . 111 . Salvage Created 7752 | 227 1178 706 850 975 1159 864 217 . 567 . 68 941 Parts 441 | 18 69 54 52 69 59 45 13 . 23 . 3 36 Haulers Intercepted 5 | . 2 1 1 . 1 . . . . . . . Recyclers Shooed 6 | . 4 . . . 1 1 . . . . . . Parts Field Recycled . | . . . . . . . . . . . . . Retrieved Matter . | . . . . . . . . . . . . . Parts Self-Destructed . | . . . . . . . . . . . . . Prevented . | . . . . . . . . . . . . . Kills | -11 -10 -9 -8 -8 -8 -7 -7 -7 -7 -6 -6 -6 ------- Run | Jun Mat Mat Mat Gar Mat Fac Gar Fac Gar Fac Gar Ext Combat Hostiles Destroyed 150 | . 15 21 12 23 18 14 6 . 19 . 1 21 Guns 76 | . 7 6 9 20 14 2 1 . 11 . 1 5 Cannons 34 | . 2 8 3 . . 7 3 . 4 . . 7 AOE 32 | . 6 7 . 2 2 4 2 . 4 . . 5 Classes Destroyed 19 | 2 6 2 1 2 3 2 . . . . . 1 Worker 8 | . 2 1 1 . 2 2 . . . . . . Builder 3 | . 2 . . . 1 . . . . . . . Tunneler 8 | 5 2 . . . 1 . . . . . . . Hauler 5 | . 2 1 1 . 1 . . . . . . . Recycler 10 | 1 4 . 2 . 1 2 . . . . . . Mechanic 1 | . . . . . . 1 . . . . . . Operator 5 | . 2 3 . . . . . . . . . . Watcher 7 | . 1 1 1 . 2 . . . . . . 2 Swarmer 21 | . . 6 . 3 . . . . 12 . . . Saboteur 1 | . . . . . . . . . . . . 1 Grunt 76 | . 15 8 8 8 7 9 5 . 5 . . 11 Brawler 5 | . . . . . . 2 . . . . 1 2 Duelist 3 | . . . . . 2 . . . . . . 1 Protector 1 | . . . . . 1 . . . . . . . Sentry 21 | . . 7 3 2 6 1 . . . . . 2 Demolisher 2 | . . . . . 1 . . . 1 . . . Specialist 1 | . . . . 1 . . . . . . . . Hunter 5 | . . . 1 . 1 . . . 1 . . 2 Programmer 14 | . . . . 9 . 2 1 . . . . 2 Best Kill Streak 8 | 3 7 5 5 3 5 6 3 . 7 . 1 8 Combat Bots Only 7 | . 3 5 4 3 4 5 3 . 7 . 1 7 Max Kills in Single Turn 4 | 1 3 3 2 2 2 2 2 . 4 . 1 2 Gunslinging . | . . . . . . . . . . . . . Exploded 4 | . 3 3 . 2 1 2 2 . 4 . . 2 Melee . | . . . . . . . . . . . . . Uniques/NPCs Destroyed . | . . . . . . . . . . . . . Combat | -11 -10 -9 -8 -8 -8 -7 -7 -7 -7 -6 -6 -6 -------- Run | Jun Mat Mat Mat Gar Mat Fac Gar Fac Gar Fac Gar Ext Damage Taken 9873 | 29 663 690 286 1351 1503 300 498 . 957 . 310 3286 Core 1668 | . 88 88 72 153 208 14 80 . 114 . 2 849 Absorbed by Shields 1939 | . . 207 93 754 10 . 34 . 600 . 146 95 Redirected to Shielding 232 | . 3 21 3 57 40 28 80 . . . . . Regen/Repaired (Parts) 636 | . . 72 . . 564 . . . . . . . Core Remaining (%) 66 | 100 64 78 . . 21 . . . 70 . . . Volleys Fired 580 | 17 93 80 32 64 93 40 14 3 42 2 12 88 Largest 3 | 2 2 2 3 3 3 3 3 1 3 2 2 3 Hottest 273 | 60 91 130 125 121 167 180 215 5 273 199 199 235 Shots Fired 1042 | 24 146 120 80 158 165 85 23 3 67 3 17 151 Gun 723 | 24 125 46 71 153 130 23 9 . 42 1 9 90 Cannon 227 | . 19 63 9 . 6 52 11 . 22 2 4 39 Launcher 52 | . 2 11 . 2 15 3 3 . 1 . . 15 Special 40 | . . . . 3 14 7 . 3 2 . 4 7 Kinetic 455 | 17 66 52 45 141 98 30 6 . . . . . Thermal 348 | . . 53 35 12 34 8 8 . 53 3 13 129 Explosive 37 | . 2 11 . 2 . 3 3 . 1 . . 15 Electromagnetic 162 | 7 78 4 . . 19 37 6 . 11 . . . Robot Hit Streak 19 | 7 9 12 13 7 10 9 2 5 9 . 5 19 Robot Miss Streak 10 | 2 4 6 5 7 10 4 2 . 5 . 2 4 Penetration Max 1 | . . . . 1 . . . . . . . . Secondary Targets 7 | . . . 1 4 1 . . . . . . 1 Max Gunslinging Chain 1 | . . . 1 1 1 . . . . . . 1 Shots Hit Robots 659 | 15 83 87 52 96 108 45 7 3 40 . 9 114 Core Hits 389 | 7 36 88 46 50 48 27 12 . 26 . 2 47 Critical Kills 7 | . . . 1 2 1 . . . . . . 3 Critical Parts Destroyed 2 | . . . . 1 1 . . . . . . . Critical Strikes 23 | . 3 4 1 3 4 2 . . 1 . . 5 Burn 4 | . . . . . 2 . . . . . . 2 Meltdown 3 | . . . . . . . . . . . . 3 Destroy 6 | . . . 1 3 2 . . . . . . . Blast 6 | . . 4 . . . 2 . . . . . . Corrupt 4 | . 3 . . . . . . . 1 . . . Melee Attacks 25 | . . . 2 7 . 2 . . 3 . . 11 Impact . | . . . . . . . . . . . . . Slashing . | . . . . . . . . . . . . . Piercing . | . . . . . . . . . . . . . Sneak Attacks 10 | . . . 2 4 . 2 . . . . . 2 Combat Hostiles 1 | . . . . 1 . . . . . . . . Follow-up Attacks . | . . . . . . . . . . . . . Damage Inflicted 16646 | 289 1721 1983 918 2245 2551 1415 463 . 1231 . 181 3649 Guns 8674 | 194 1011 557 819 2029 1659 198 44 . 560 . 113 1490 Cannons 3662 | . 211 811 99 . 119 751 123 . 464 . 68 1016 Explosions 4284 | 95 499 615 . 213 755 466 296 . 207 . . 1138 Melee . | . . . . . . . . . . . . . Ramming 26 | . . . . 3 18 . . . . . . 5 Kinetic 5483 | 140 544 559 585 1873 1323 371 88 . . . . . Thermal 6041 | 95 499 726 333 156 445 281 44 . 775 . 181 2506 Explosive 2692 | . . 615 . 213 . 223 296 . 207 . . 1138 Electromagnetic 2404 | 54 678 83 . . 765 540 35 . 249 . . . Impact . | . . . . . . . . . . . . . Slashing . | . . . . . . . . . . . . . Piercing . | . . . . . . . . . . . . . Highest Corruption 14 | . . 1 1 4 5 . 3 3 3 . 8 14 Average Corruption 5 | . . 1 1 3 4 . 2 3 3 . 7 10 Corruption Purged . | . . . . . . . . . . . . . Corruption Blocked . | . . . . . . . . . . . . . Effects 248 | . . 2 5 28 48 . 15 2 27 . 52 69 Message Errors 58 | . . . 2 9 6 . 4 1 6 . 12 18 Matter Fused 57 | . . 1 . 6 10 . 4 1 10 . 16 9 Heat Flow Errors 37 | . . . . 5 9 . 1 . 3 . 12 7 Energy Discharges 25 | . . . 2 . 9 . 2 . 1 . 4 7 Parts Rejected 1 | . . . . . 1 . . . . . . . Parts Fused 3 | . . . . . 1 . . . 1 . 1 . Data Loss (minor) 36 | . . 1 1 7 5 . 2 . 4 . 3 13 Data Loss (major) 8 | . . . . . 1 . 1 . 1 . 2 3 Misfires 11 | . . . . 1 4 . . . 1 . 1 4 Alerts 8 | . . . . . 2 . 1 . . . 1 4 Weapon Failures 4 | . . . . . . . . . . . . 4 Overload Shots . | . . . . . . . . . . . . . Overflow Damage 232 | 1 84 13 . 48 25 23 . . . . . 38 Projectiles 36 | . 9 10 . . . . . . . . . 17 Explosions 196 | 1 75 3 . 48 25 23 . . . . . 21 Melee . | . . . . . . . . . . . . . Knockbacks 14 | . 1 8 . . 2 2 1 . . . . . Impact . | . . . . . . . . . . . . . Kinetic 14 | . 1 8 . . 2 2 1 . . . . . Secondary . | . . . . . . . . . . . . . Self-Inflicted Damage 537 | 29 72 127 . . 153 . . . . . . 156 Shots 20 | 1 2 3 . . 9 . . . . . . 5 Rammed 6 | . . . . 2 3 . . . . . . 1 Targets Rammed 9 | . . . . 2 3 . . . . . . 4 Kicked 3 | . . . . . . . . . . . . 3 Crushed . | . . . . . . . . . . . . . Highest Temperature 604 | 12 84 395 249 528 604 252 351 . 344 67 278 588 Average Temperature 121 | 12 26 108 93 173 152 78 115 . 114 44 99 122 Received Heat Transfer 2912 | . 336 217 159 553 558 162 126 . 95 . 25 681 Effects 55 | . . 4 . 21 16 . . . 3 . 1 10 Shutdowns 8 | . . 1 . 1 2 . . . . . . 4 Energy Bleed 9 | . . . . 6 2 . . . . . . 1 Interference 16 | . . 1 . 7 3 . . . 3 . 1 1 Matter Decay 7 | . . 2 . 2 2 . . . . . . 1 Short Circuit 3 | . . . . 1 1 . . . . . . 1 Damage (minor) 1 | . . . . . 1 . . . . . . . Damage (major) 11 | . . . . 4 5 . . . . . . 2 Siege Activations . | . . . . . . . . . . . . . Robots Corrupted 5 | . 2 . . . 2 1 . . . . . . Combat Hostiles 3 | . . . . . 2 1 . . . . . . Parts Fried 13 | . 5 1 . . 3 1 . . 3 . . . Impact Corruptions . | . . . . . . . . . . . . . Robots Melted 4 | . . . . . . . . . . . . 4 Combat Hostiles 4 | . . . . . . . . . . . . 4 Parts Melted 14 | . . 1 . . 1 . . . 3 . . 9 Heat Transferred 8262 | 100 350 979 448 175 938 224 74 . 1052 . 222 3700 Parts Sabotaged . | . . . . . . . . . . . . . Parts Stolen . | . . . . . . . . . . . . . Parts Stripped . | . . . . . . . . . . . . . Power Chain Reactions 8 | 1 3 . . . 2 2 . . . . . . Missiles Intercepted . | . . . . . . . . . . . . . Alert | -11 -10 -9 -8 -8 -8 -7 -7 -7 -7 -6 -6 -6 ------- Run | Jun Mat Mat Mat Gar Mat Fac Gar Fac Gar Fac Gar Ext Peak Influence 1714 | 30 468 730 503 1714 1061 361 435 228 993 561 1609 975 Initial 844 | . 19 150 269 328 813 249 170 228 159 520 393 844 Average 618 | 14 212 513 372 862 691 197 297 228 541 522 1131 858 Maximum Alert Level 5 | . 2 3 2 5 3 1 2 1 3 2 5 3 Low Security (%) 11 | 100 47 2 . . . 38 17 . 22 . . . Level 1 24 | . 39 33 56 7 10 61 76 100 8 . 4 . Level 2 24 | . 13 38 43 35 44 . 5 . 35 100 11 7 Level 3 29 | . . 25 . 24 44 . . . 33 . 31 92 Level 4 8 | . . . . 26 . . . . . . 45 . Level 5 1 | . . . . 6 . . . . . . 7 . High Security . | . . . . . . . . . . . . . Max Security . | . . . . . . . . . . . . . Squads Dispatched 33 | . 7 5 2 . 4 5 . . . 2 . 8 Investigation 8 | . 3 2 . . 1 . . . . 1 . 1 Extermination 2 | . . . . . . 2 . . . . . . Reinforcement 10 | . 4 2 . . . 1 . . . . . 3 Assault 8 | . . 1 . . 3 . . . . . . 4 Garrison 5 | . . . 2 . . 2 . . . 1 . . Intercept . | . . . . . . . . . . . . . Searches Triggered . | . . . . . . . . . . . . . Construction Impeded 3 | . . . . . . . . . . . . 3 Haulers Reinforced . | . . . . . . . . . . . . . Active Scanning Responses . | . . . . . . . . . . . . . Cargo Convoy Interrupts . | . . . . . . . . . . . . . Stealth | -11 -10 -9 -8 -8 -8 -7 -7 -7 -7 -6 -6 -6 --------- Run | Jun Mat Mat Mat Gar Mat Fac Gar Fac Gar Fac Gar Ext Distress Signals 9 | . 3 2 . . 4 . . . . . . . Communications Jammed 122 | . . . . . . . . . . . . 122 Distress Signals 122 | . . . . . . . . . . . . 122 Times Spotted 314 | . 34 36 16 41 53 16 11 1 33 2 24 47 Peak Tracking Total 10 | . 4 5 3 4 8 4 5 1 6 2 4 10 Tactical Retreats 16 | . 2 2 . . 4 . . . 7 . . 1 Traps | -11 -10 -9 -8 -8 -8 -7 -7 -7 -7 -6 -6 -6 ------- Run | Jun Mat Mat Mat Gar Mat Fac Gar Fac Gar Fac Gar Ext Traps Triggered 7 | . 1 . . 1 1 1 . . 1 . 2 . Indirectly . | . . . . . . . . . . . . . Trap Hack Attempts 30 | . . . . . . 30 . . . . . . Triggered . | . . . . . . . . . . . . . Disarmed . | . . . . . . . . . . . . . Reprogrammed 5 | . . . . . . 5 . . . . . . Reused 4 | . . . . . . 1 3 . . . . . Traps Extracted . | . . . . . . . . . . . . . Installed 3 | . . . . . . . 3 . . . . . Triggered 5 | . 1 . . . . 1 3 . . . . . Most Traps Carried 2 | . . . . . . . 2 . . . . . Machines | -11 -10 -9 -8 -8 -8 -7 -7 -7 -7 -6 -6 -6 ---------- Run | Jun Mat Mat Mat Gar Mat Fac Gar Fac Gar Fac Gar Ext Machines Disabled 45 | . 7 6 1 9 4 4 3 . 2 . 5 4 Max in Single Turn 3 | . 2 2 1 2 1 3 1 . 1 . 1 2 Garrison Relay 15 | . . . . 8 . . 1 . 2 . 4 . Machines Repaired . | . . . . . . . . . . . . . Machines Sabotaged . | . . . . . . . . . . . . . Overloaded Fab Kills . | . . . . . . . . . . . . . Hacking | -11 -10 -9 -8 -8 -8 -7 -7 -7 -7 -6 -6 -6 --------- Run | Jun Mat Mat Mat Gar Mat Fac Gar Fac Gar Fac Gar Ext Machines Accessed 52 | . 6 8 4 3 8 6 2 2 2 2 3 6 Terminals 40 | . 4 5 3 3 7 3 2 1 2 1 3 6 Fabricators 1 | . . . . . . 1 . . . . . . Repair Stations 1 | . . 1 . . . . . . . . . . Recycling Units 5 | . 2 2 . . 1 . . . . . . . Scanalyzers 1 | . . . . . . 1 . . . . . . Garrison Access 4 | . . . 1 . . 1 . 1 . 1 . . Total Hacks 135 | . 15 35 9 6 26 12 3 2 2 3 7 15 Successful 65 | . 9 21 3 3 10 8 1 2 1 1 2 4 Failed 70 | . 6 14 6 3 16 4 2 . 1 2 5 11 Catastrophic 13 | . . 1 2 1 2 . 1 . 1 1 2 2 Database Lockouts . | . . . . . . . . . . . . . Manual 61 | . 9 18 6 1 15 4 1 . . . . 7 Terminals 103 | . 10 22 7 6 24 4 3 1 2 2 7 15 Fabricators 2 | . . . . . . 2 . . . . . . Repair Stations 4 | . . 4 . . . . . . . . . . Recycling Units 16 | . 5 9 . . 2 . . . . . . . Scanalyzers 4 | . . . . . . 4 . . . . . . Garrison Access 6 | . . . 2 . . 2 . 1 . 1 . . Terminal Hacks 31 | . 4 9 1 2 6 2 1 1 1 . 2 2 Robot Analysis 2 | . . 2 . . . . . . . . . . Prototype ID Bank 4 | . . 2 . . 2 . . . . . . . Open Door 2 | . . . . 1 . . . . . . 1 . Open DSF 2 | . . . . . . 1 . 1 . . . . Branch Access Points 3 | . 1 1 1 . . . . . . . . . Emergency Access Points 2 | . . . . 1 . . . . . . 1 . Terminal Index 4 | . 1 1 . . 1 . . . . . . 1 Unreport Threat 5 | . . . . . 3 1 . . . . . 1 Locate Traps 2 | . . 2 . . . . . . . . . . Recall Investigation 1 | . . 1 . . . . . . . . . . Recall Reinforcements 1 | . 1 . . . . . . . . . . . Zone Layout 1 | . 1 . . . . . . . . . . . Garrison Registry 2 | . . . . . . . 1 . 1 . . . Fabricator Hacks . | . . . . . . . . . . . . . Repair Station Hacks 4 | . . 4 . . . . . . . . . . Scan Component 2 | . . 2 . . . . . . . . . . Repair 2 | . . 2 . . . . . . . . . . Recycling Unit Hacks 6 | . 2 3 . . 1 . . . . . . . Retrieve Components 6 | . 2 3 . . 1 . . . . . . . Scanalyzer 4 | . . . . . . 4 . . . . . . Insert Component 2 | . . . . . . 2 . . . . . . Analyze 2 | . . . . . . 2 . . . . . . Garrison Access Hacks 4 | . . . 1 . . 1 . 1 . 1 . . Unlock Access 4 | . . . 1 . . 1 . 1 . 1 . . Unauthorized Hacks 16 | . 3 5 1 1 3 1 . . . . . 2 Terminals 10 | . 1 3 1 1 2 . . . . . . 2 Track 1 | . 1 . . . . . . . . . . . Botnet 9 | . . 3 1 1 2 . . . . . . 2 Fabricators 1 | . . . . . . 1 . . . . . . Haulers 1 | . . . . . . 1 . . . . . . Repair Stations . | . . . . . . . . . . . . . Recycling Units 5 | . 2 2 . . 1 . . . . . . . Reject 3 | . 1 1 . . 1 . . . . . . . Recyclers 2 | . 1 1 . . . . . . . . . . Scanalyzers . | . . . . . . . . . . . . . Garrison Access . | . . . . . . . . . . . . . Data Cores Recovered 1 | . . . . . . . . . . . . 1 Used . | . . . . . . . . . . . . . Hacking Detections 47 | . 6 8 4 2 7 5 2 1 2 1 3 6 Full Trace Events 8 | . . 4 1 . . . . . . 1 1 1 Feedback Events 2 | . . 1 1 . . . . . . . . . Corruption 2 | . . 1 1 . . . . . . . . . Feedback Blocked . | . . . . . . . . . . . . . Robot Schematics Acquired . | . . . . . . . . . . . . . Robots Built . | . . . . . . . . . . . . . Authchips . | . . . . . . . . . . . . . Time . | . . . . . . . . . . . . . Total Robot Build Rating . | . . . . . . . . . . . . . Part Schematics Acquired 1 | . . . . . . 1 . . . . . . Parts Built . | . . . . . . . . . . . . . Authchips . | . . . . . . . . . . . . . Time . | . . . . . . . . . . . . . Total Part Build Rating . | . . . . . . . . . . . . . Parts Repaired 2 | . . 2 . . . . . . . . . . Time 64 | . . 64 . . . . . . . . . . Parts Recycled . | . . . . . . . . . . . . . Recycled Matter . | . . . . . . . . . . . . . Retrieved Matter . | . . . . . . . . . . . . . Retrieved Components 17 | . 5 2 . . 10 . . . . . . . Parts Scanalyzed 2 | . . . . . . 2 . . . . . . Part Schematics Acquired 1 | . . . . . . 1 . . . . . . Parts Damaged . | . . . . . . . . . . . . . Bothacking | -11 -10 -9 -8 -8 -8 -7 -7 -7 -7 -6 -6 -6 ------------ Run | Jun Mat Mat Mat Gar Mat Fac Gar Fac Gar Fac Gar Ext Used RIF Installer 6 | . . . . 2 . . 1 . 2 . 1 . Hotswap 1 | . . . . . . . . . 1 . . . Robot Detection 1 | . . . . . . . 1 . . . . . Watcher Feeds 1 | . . . . . . . . . . . 1 . Structural Interface 1 | . . . . 1 . . . . . . . . Autooverride 1 | . . . . . . . . . 1 . . . Robots Hacked 43 | . . . 2 6 10 4 . 2 5 . 4 10 Non-combat 13 | . . . 2 1 2 4 . 2 . . . 2 Combat 30 | . . . . 5 8 . . . 5 . 4 8 Autooverrided 1 | . . . . . . . . . . . 1 . Robot Hacks Applied 48 | . . . 2 6 12 6 . 3 5 . 3 11 parse_system 2 | . . . . . . . . 1 1 . . . find_chute 1 | . . . . . . 1 . . . . . . drop_inventory 1 | . . . . . . 1 . . . . . . locate_stockpiles 1 | . . . . . . 1 . . . . . . find_recycling 3 | . . . 2 . . 1 . . . . . . map_route 1 | . . . . . . . . 1 . . . . find_shortcuts 1 | . . . . . 1 . . . . . . . scatter_targeting 1 | . . . . . 1 . . . . . . . broadcast_data 1 | . . . . . . . . . . . . 1 disrupt_area 3 | . . . . . 1 . . . . . . 2 spike_heat 1 | . . . . . 1 . . . . . . . overload_power 1 | . . . . . 1 . . . . . . . disable_weapons 1 | . . . . . . . . . . . 1 . overwrite_iff 13 | . . . . 1 3 . . . 3 . 1 5 formatsys_low 4 | . . . . . 1 2 . 1 . . . . formatsys_high 13 | . . . . 5 3 . . . 1 . 1 3 Relay Couplers Released 63 | . . . . 33 . . 5 . 7 . 18 . Machine Destruction 63 | . . . . 33 . . 5 . 7 . 18 . Attached 17 | . . . . 4 3 1 . 1 3 . 3 2 Fabnet Peak Effective % . | . . . . . . . . . . . . . Robots Rewired 7 | . . . . 5 . . . . . . . 2 Allies Hacked . | . . . . . . . . . . . . . Hacks Repelled . | . . . . . . . . . . . . . Allies | -11 -10 -9 -8 -8 -8 -7 -7 -7 -7 -6 -6 -6 -------- Run | Jun Mat Mat Mat Gar Mat Fac Gar Fac Gar Fac Gar Ext Total Allies 44 | . . . . 11 7 2 . 1 6 . 7 10 Largest Group 8 | . . . . 8 4 2 . 1 2 2 7 6 Highest-Rated Group 433 | . . . . 145 62 25 . 8 157 157 433 343 Highest-Rated Ally 95 | . . . . 31 27 14 . 8 95 95 95 95 Total Orders 14 | . . . . . 3 7 . . 1 . . 3 STAY 6 | . . . . . 1 2 . . 1 . . 2 FOLLOW 3 | . . . . . . 2 . . . . . 1 AID 2 | . . . . . 2 . . . . . . . DROP 1 | . . . . . . 1 . . . . . . PICKUP 1 | . . . . . . 1 . . . . . . COLLECT 1 | . . . . . . 1 . . . . . . Ally Attacks 317 | . . . . 98 47 . . . 18 10 76 68 Total Damage 8807 | . . . . 1631 525 . . . 434 543 3634 2040 Kills 63 | . . . . 13 6 . . . 4 1 27 12 Allies Corrupted 2 | . . . . . . . . . . . 2 . Allies Melted . | . . . . . . . . . . . . . Intel | -11 -10 -9 -8 -8 -8 -7 -7 -7 -7 -6 -6 -6 ------- Run | Jun Mat Mat Mat Gar Mat Fac Gar Fac Gar Fac Gar Ext Robot Analysis Total 2 | . . 2 . . . . . . . . . . Derelict Logs Recovered . | . . . . . . . . . . . . . Drone Launches . | . . . . . . . . . . . . . Drone Recoveries . | . . . . . . . . . . . . . Exploration | -11 -10 -9 -8 -8 -8 -7 -7 -7 -7 -6 -6 -6 ------------- Run | Jun Mat Mat Mat Gar Mat Fac Gar Fac Gar Fac Gar Ext Turns Passed 14549 | 144 1215 1251 758 1993 2085 1148 1018 133 1292 132 1551 1829 Spaces Moved 6375 | 73 630 638 319 733 840 561 495 56 590 52 619 769 Core 9 | 3 . . . . . . . . . . . 6 Treads 4727 | . . 250 319 733 840 561 495 56 590 52 619 212 Legs 1633 | 64 630 388 . . . . . . . . . 551 Wheels 6 | 6 . . . . . . . . . . . . Hover . | . . . . . . . . . . . . . Flight . | . . . . . . . . . . . . . Fastest Speed 50 | 50 120 120 170 170 170 163 163 163 160 240 240 110 Average Speed 182 | 114 120 143 180 205 202 169 188 183 173 240 240 192 Slowest Speed 320 | 120 120 250 250 250 250 170 243 243 320 240 240 260 Overloaded Moves . | . . . . . . . . . . . . . Propulsion Burnouts . | . . . . . . . . . . . . . Robots Hopped . | . . . . . . . . . . . . . Cave-ins Triggered . | . . . . . . . . . . . . . Exploration Rate (%) 51 | 5 92 59 34 87 68 17 69 2 79 2 96 56 Regions Visited 12 Branch Regions 1 Pre-discovered Areas . | . . . . . . . . . . . . . Known Exits Taken 4 | . . . 1 . . 1 . 1 . 1 . . Unknown Exits Taken 4 | 1 1 1 . . 1 . . . . . . . Scrap Searched . | . . . . . . . . . . . . . Spaces Dug 59 | . 12 . . 11 . 10 15 . . 2 . 9 Terrain Destroyed 464 | 5 68 121 1 34 16 53 31 . 5 3 1 126 Melee . | . . . . . . . . . . . . . Projectile 33 | . . 1 1 9 5 1 1 . 1 3 1 10 AOE 431 | 5 68 120 . 25 11 52 30 . 4 . . 116 Terrain Rammed . | . . . . . . . . . . . . . Walls Destroyed . | . . . . . . . . . . . . . Machines Disabled . | . . . . . . . . . . . . . Actions | -11 -10 -9 -8 -8 -8 -7 -7 -7 -7 -6 -6 -6 --------- Run | Jun Mat Mat Mat Gar Mat Fac Gar Fac Gar Fac Gar Ext Total 8326 | 105 945 847 432 1090 1081 682 563 84 792 57 673 975 Wait 816 | . 176 64 49 191 87 19 12 23 121 2 15 57 Move 6366 | 72 629 637 319 732 839 561 494 56 589 51 618 769 Hop . | . . . . . . . . . . . . . Pick Up 93 | 2 14 14 7 15 6 4 12 . 4 . 8 7 Fast Attach 62 | 10 2 5 4 1 15 6 3 . 7 . . 9 Attach 41 | . 4 4 1 4 5 2 3 . 2 2 4 10 Detach 17 | 3 2 . . . 4 2 1 . 1 . 1 3 Swap 140 | 1 12 26 8 20 13 14 6 2 18 . 7 13 Drop 97 | . 13 17 10 13 14 2 15 . 4 . 6 3 Fire 580 | 17 93 80 32 64 93 40 14 3 42 2 12 88 Melee 25 | . . . 2 7 . 2 . . 3 . . 11 Ram . | . . . . . . . . . . . . . Kick 3 | . . . . . . . . . . . . 3 Crush 6 | . . . . 2 3 . . . . . . 1 Escape Stasis 4 | . . . . 2 . . . . . . 2 . Rewire 43 | . . . . 39 2 . . . 1 . . 1 Trap 33 | . . . . . . 30 3 . . . . . Miscellaneous . | . . . . . . . . . . . . . Route ------- -11/Junkyard -10/Materials (discovered 4 exits: *Mat x2 / *Min x2) -9/Materials (discovered 3 exits: *Mat / *Min x2) -8/Materials (discovered 3 exits: *Fac x2 / Gar) -8/Garrison (discovered 3 exits: *Mat x3) -8/Materials (discovered 3 exits: *Fac x3) -7/Factory (discovered 2 exits: [*Sto] / Gar) -7/Garrison (discovered 3 exits: *Fac x3) -7/Factory (discovered 2 exits: Fac / Gar) -7/Garrison (discovered 3 exits: *Fac x3) -6/Factory -6/Garrison (discovered 3 exits: *Ext x3) -6/Extension History --------- Turn | Location | Event 6 | -11/Junkyard | Discovered new exit (range 16) 145 | -11/Junkyard | Entered Materials 310 | -10/Materials | Build established: Mutant 788 | -10/Materials | Discovered new exit (range 6) 1089 | -10/Materials | Discovered new exit (range 10) 1188 | -10/Materials | Discovered new exit (range 9) 1253 | -10/Materials | Identified exit to Mines 1355 | -10/Materials | Discovered new exit (range 5) 1360 | -10/Materials | Entered another Materials area 1360 | -9/Materials | Evolved 2 slots: Utility x2 1420 | -9/Materials | Build established: Scavenger-Mutant 1825 | -9/Materials | Discovered new exit (range 9) 1884 | -9/Materials | Build established: Mutant 1969 | -9/Materials | Identified exit to Mines 2471 | -9/Materials | Repaired Shield Generator 2505 | -9/Materials | Repaired Med. Armor Plating 2560 | -9/Materials | First assault squad dispatched 2593 | -9/Materials | Discovered new exit (range 3) 2611 | -9/Materials | Entered another Materials area 2611 | -8/Materials | Evolved 2 slots: Power x1, Weapon x1 3025 | -8/Materials | Discovered new exit (range 8) 3172 | -8/Materials | Garrison activated, responded to threat 3306 | -8/Materials | Discovered new exit (range 15) 3369 | -8/Materials | Identified exit to Garrison 3369 | -8/Materials | Entered Garrison 3420 | -8/Garrison | Triggered checkpoint 3522 | -8/Garrison | Garrison Relay disabled 3742 | -8/Garrison | Installed Relay Interface Framework 3857 | -8/Garrison | Expanded RIF knowledge: Structural Interface 4030 | -8/Garrison | Lost 3 parts (1p1u1w) 4066 | -8/Garrison | Triggered checkpoint 4276 | -8/Garrison | Build established: Tank 4402 | -8/Garrison | Discovered new exit (range 11) 4404 | -8/Garrison | Triggered checkpoint 4432 | -8/Garrison | Triggered checkpoint 4452 | -8/Garrison | Garrison Relay disabled 4676 | -8/Garrison | Triggered checkpoint 4694 | -8/Garrison | Triggered checkpoint 4822 | -8/Garrison | Triggered checkpoint 4887 | -8/Garrison | Discovered new exit (range 14) 5006 | -8/Garrison | Triggered checkpoint 5072 | -8/Garrison | Garrison Relay disabled 5092 | -8/Garrison | Triggered checkpoint 5226 | -8/Garrison | Garrison Relay disabled 5226 | -8/Garrison | Garrison Relay disabled 5234 | -8/Garrison | Garrison Relay disabled 5234 | -8/Garrison | Garrison Relay disabled 5292 | -8/Garrison | Discovered new exit (range 5) 5295 | -8/Garrison | Build established: Bothacker-Tank 5330 | -8/Garrison | Triggered checkpoint 5362 | -8/Garrison | Entered Materials 5559 | -8/Materials | Discovered new exit (range 14) 5653 | -8/Materials | Core integrity fell below 50% 5665 | -8/Materials | Build established: Bothacker-Mutant 5762 | -8/Materials | First assault squad dispatched 5940 | -8/Materials | Discovered new exit (range 11) 6212 | -8/Materials | Build established: Tank 7108 | -8/Materials | Discovered new exit (range 10) 7192 | -8/Materials | Build established: Mutant 7447 | -8/Materials | Entered Factory 7447 | -7/Factory | Evolved 2 slots: Propulsion x1, Utility x1 7510 | -7/Factory | Build established: Tank 7800 | -7/Factory | Identified exit to DSF 7845 | -7/Factory | Discovered new exit (range 15) 8356 | -7/Factory | Build established: Mutant 8490 | -7/Factory | Garrison activated, responded to threat 8595 | -7/Factory | Identified exit to Garrison 8595 | -7/Factory | Entered Garrison 8618 | -7/Garrison | Discovered new exit (range 80) 8618 | -7/Garrison | Discovered new exit (range 102) 8618 | -7/Garrison | Discovered new exit (range 45) 8684 | -7/Garrison | Build established: Tank 8860 | -7/Garrison | Triggered checkpoint 9020 | -7/Garrison | Triggered checkpoint 9124 | -7/Garrison | Expanded RIF knowledge: Robot Detection 9448 | -7/Garrison | Lost 3 parts (3u) 9552 | -7/Garrison | Garrison Relay disabled 9613 | -7/Garrison | Entered Factory 9626 | -7/Factory | Identified exit to DSF 9686 | -7/Factory | Discovered new exit (range 84) 9746 | -7/Factory | Identified exit to Garrison 9746 | -7/Factory | Entered Garrison 9746 | -7/Garrison | Accompanied by 1 ally 9794 | -7/Garrison | Expanded RIF knowledge: Autooverride 10042 | -7/Garrison | Triggered checkpoint 10045 | -7/Garrison | Triggered checkpoint 10048 | -7/Garrison | Triggered checkpoint 10174 | -7/Garrison | Destroyed 7 combat bots 10272 | -7/Garrison | Lost 5 parts (1p2n1u1w) 10379 | -7/Garrison | Expanded RIF knowledge: Hotswap 10448 | -7/Garrison | Discovered new exit (range 10) 10535 | -7/Garrison | Build established: Scavenger-Tank 10593 | -7/Garrison | Triggered checkpoint 10611 | -7/Garrison | Garrison Relay disabled 10716 | -7/Garrison | Discovered new exit (range 9) 10745 | -7/Garrison | Found embedded Infiltrators 10764 | -7/Garrison | Triggered checkpoint 10782 | -7/Garrison | Garrison Relay disabled 10915 | -7/Garrison | Discovered new exit (range 28) 10915 | -7/Garrison | Discovered new exit (range 20) 10915 | -7/Garrison | Discovered new exit (range 54) 10928 | -7/Garrison | Build established: Bothacker-Mutant 11038 | -7/Garrison | Entered Factory 11038 | -6/Factory | Accompanied by 2 allies 11038 | -6/Factory | Evolved 2 slots: Utility x2 11160 | -6/Factory | Identified exit to Garrison 11170 | -6/Factory | Entered Garrison 11170 | -6/Garrison | Accompanied by 2 allies 11207 | -6/Garrison | Found embedded Infiltrators 11224 | -6/Garrison | Triggered checkpoint 11263 | -6/Garrison | Lost 3 parts (2u1w) 11278 | -6/Garrison | Garrison Relay disabled 11402 | -6/Garrison | Triggered checkpoint 11416 | -6/Garrison | Triggered checkpoint 11561 | -6/Garrison | Garrison Relay disabled 11570 | -6/Garrison | Triggered checkpoint 11658 | -6/Garrison | Discovered new exit (range 3) 11898 | -6/Garrison | Triggered checkpoint 11908 | -6/Garrison | Build established: Botlord-Mutant 11974 | -6/Garrison | Rescued a captive Derelict 11974 | -6/Garrison | Rescued a captive Derelict 12022 | -6/Garrison | Triggered checkpoint 12067 | -6/Garrison | Garrison Relay disabled 12139 | -6/Garrison | Found Relay Coupler [Proto] 12143 | -6/Garrison | Found Relay Coupler [Proto] 12204 | -6/Garrison | Discovered new exit (range 15) 12428 | -6/Garrison | Triggered checkpoint 12494 | -6/Garrison | Garrison Relay disabled 12576 | -6/Garrison | Discovered new exit (range 15) 12594 | -6/Garrison | Triggered checkpoint 12652 | -6/Garrison | Expanded RIF knowledge: Watcher Feeds 12721 | -6/Garrison | Entered Extension 12721 | -6/Extension | Accompanied by 5 allies 12736 | -6/Extension | Disrupted transfer network 12907 | -6/Extension | Spotted B-75 Beast 13071 | -6/Extension | First assault squad dispatched 13562 | -6/Extension | P-60 Hacker assimilated allied Soldier 5a 13605 | -6/Extension | Destroyed 7 combat bots 13918 | -6/Extension | System corruption reached 10% 14294 | -6/Extension | Lost 3 parts (2u1w) 14447 | -6/Extension | Spotted B-75 Beast 14520 | -6/Extension | Core integrity fell below 50% 14539 | -6/Extension | Core integrity fell below 20% 14550 | -6/Extension | Destroyed by Y-54 Guardian with Gatling Laser Last Messages --------------- 14519_ Lgt. Treads destroyed. 14519_ Relay Coupler [Behemoth] destroyed. 14522_ Neutrino Core destroyed. 14526_ Hvy. Laser destroyed. 14529_ =QGJ> SCQT7=GIZO&ZHMD=K4DGW 14529_ Slammed into Y-54 Guardian. 14530_ M-28 Smith repairs B-75 Beast. 14531_ Imp. Treads destroyed. 14532_ M-28 Smith repairs Dynamic Insulation System. 14534_ Imp. Treads destroyed. 14534_ M-28 Smith repairs Coolant Injector. 14536_ Acquired Imp. Light Armor Plating. 14536_ M-28 Smith repairs Magnetic Acceleration Cannon. 14537_ Adv. Cooling System destroyed. 14538_ Knocked back. 14542_ Acquired 4 matter. 14543_ Knocked back. 14544_ Acquired 1 matter. 14546_ System corrupted: Component data lost. 14550_ Knocked back. Map ----- +----------------------------------------------------+ | "#???????????#??# #????????????????????????? | | ##??????????????# #????????????????????????? | | ????????????????# #????????????????????????? | | ????????????????# ##### #????????????????????????? | | ????????????????# #???# #????????????????????????? | | ?????????????####+##### #????????????????????????? | | ?????????????# # #????????????????????????? | | ?????????????# !=! + #????????????????????????? | | ?????????????# ! # #????????????????????????? | | ?????????????# ! # #????????????????????????? | | ?????????????########## #????????????????????????? | | ??????????????????????#%##???????????????????????? | | ????????????????????# #%%#?##?##???#?????????????? | | ????????????????????###!%## ## ### ##????????????? | | ????????????????????#"Y!%"* "" ""#???????????? | | ????????????????????#%=!mBB " " #???????????? | | ????????????????????#!==%BB R #???????????? | | ????????????????????# * % #???????????? | | ##################### ###?????????? | | % u ????????? | | ????????? | | % ????????? | | % % % ????????? | | % %% % % ????????? | | #####################% ###?????????? | | #???????????????????# @ #???????????? | | #???????????????????# #???????????? | | #???????????????????# #???????????? | | #???????????????????# #???????????? | | ????????????????????######T#"""#######???????????? | | ??????????????????????????##?????????????????????? | | ?????????????????????????????????????????????????? | | | | | | | | | | | | | | | | | | | | | | | | | | | | | | | | | | | | | +----------------------------------------------------+ Best States ------------- Heat Dissipation 68 Energy Generation 37 Energy Capacity 555 Matter Stores 300 Matter Capacity 300 Sight Range 20 Terrain Scan Range 24 Terrain Scan Density 85 Jamming Range 16 Armor Coverage 450 Utility Shielding 66 Weapon Shielding 66 Weapon Cycling 15 Phase Shifting 10 Evasion (%) 55 Recoil Reduction 3 Particle Charging 20 Offensive Hacking 10 Relay Coupler Types 4 Relay Coupler Value 91 Item Schematics ----------------- Arm. Treads | -7/Factory | Scanalyzed Robot Schematics ------------------ None Fabricated ------------ Nothing Alien Tech Used ----------------- None Achievements -------------- None Challenges ------------ None Game ------ Seed TrapMassSteel Manual? 0 Play Time 02:46:15 Cumulative 1065.4 hours Start 2023.09.21 @ 12:33:56 End 2023.09.21 @ 23:37:13 Sessions 3 Manual Loads 0 Difficulty Rogue Special Mode None Game No. 441 Rogue 441 Adventurer 0 Explorer 0 Win Type - Total 14 Types 12/0/1/1/0/0/0/0/0 Lore% 72 Gallery% 84 Achievement% 71 Wizard Run 0 Options --------- ASCII 0 Keyboard 1 Movement Numpad Keybinds 0 Fullscreen 1 Font 18/SmallcapsGlow Map View 112x50 Tactical HUD 1 Map Filters NONE Filters NONE Steam 1 RUN: 7a8d6708-2efd-4970-88d2-ae4590e40844